[Event "Early-Titled-Tuesday-Blitz-May-14-2024"]
[Site "Chess.com"]
[Date "2024.05.14"]
[Round "10"]
[White "MatthewG-p4p"]
[Black "The_Machine04"]
[Result "1-0"]
[WhiteElo "2848"]
[BlackElo "2680"]
[TimeControl "180+1"]
[EndTime "9:59:11 PDT"]
[Termination "MatthewG-p4p won by checkmate"]

1. f4 {[%clk 0:03:00.6]} 1... d5 {[%clk 0:02:59.6]} 2. Nf3 {[%clk 0:02:59.7]}
2... Nc6 {[%clk 0:02:59.3]} 3. g3 {[%clk 0:02:56.5]} 3... Bg4 {[%clk 0:02:59.1]}
4. Bg2 {[%clk 0:02:56.2]} 4... h5 {[%clk 0:02:45.8]} 5. h3 {[%clk 0:02:55.4]}
5... Bxf3 {[%clk 0:02:45.2]} 6. Bxf3 {[%clk 0:02:56.3]} 6... e5 {[%clk
0:02:45.6]} 7. d3 {[%clk 0:02:56.6]} 7... Nf6 {[%clk 0:02:40.8]} 8. Nc3 {[%clk
0:02:56.5]} 8... Bb4 {[%clk 0:02:37.7]} 9. O-O {[%clk 0:02:55]} 9... Bd6 {[%clk
0:02:17.2]} 10. e4 {[%clk 0:02:44.4]} 10... dxe4 {[%clk 0:02:11.3]} 11. Nxe4
{[%clk 0:02:36.1]} 11... Nxe4 {[%clk 0:02:06.7]} 12. Bxe4 {[%clk 0:02:35.7]}
12... exf4 {[%clk 0:01:58.8]} 13. Bxf4 {[%clk 0:02:35.2]} 13... Bxf4 {[%clk
0:01:58.9]} 14. Rxf4 {[%clk 0:02:36.1]} 14... Qg5 {[%clk 0:01:59]} 15. Bxc6+
{[%clk 0:02:04.9]} 15... bxc6 {[%clk 0:01:59.9]} 16. Qe2+ {[%clk 0:02:05]} 16...
Kf8 {[%clk 0:01:55.1]} 17. Qf2 {[%clk 0:01:58.8]} 17... f6 {[%clk 0:01:42.9]}
18. Re1 {[%clk 0:01:14.2]} 18... Re8 {[%clk 0:01:38.6]} 19. Rf1 {[%clk
0:00:33.7]} 19... Kf7 {[%clk 0:01:27.1]} 20. h4 {[%clk 0:00:33.1]} 20... Qg6
{[%clk 0:01:08.1]} 21. Kg2 {[%clk 0:00:23]} 21... a6 {[%clk 0:01:02.7]} 22. Qa7
{[%clk 0:00:16.2]} 22... Re7 {[%clk 0:00:36.3]} 23. Qxa6 {[%clk 0:00:16.1]}
23... Re6 {[%clk 0:00:32.7]} 24. Qb7 {[%clk 0:00:15.9]} 24... Rhe8 {[%clk
0:00:31.9]} 25. Qxc7+ {[%clk 0:00:15.6]} 25... R8e7 {[%clk 0:00:32.5]} 26. Qb6
{[%clk 0:00:14.6]} 26... Re3 {[%clk 0:00:18.1]} 27. R4f3 {[%clk 0:00:09.8]}
27... Re2+ {[%clk 0:00:15.1]} 28. R1f2 {[%clk 0:00:10]} 28... Qg4 {[%clk
0:00:15.2]} 29. Qb3+ {[%clk 0:00:09]} 29... Kg6 {[%clk 0:00:14]} 30. d4 {[%clk
0:00:06.3]} 30... Re1 {[%clk 0:00:09.5]} 31. Qd3+ {[%clk 0:00:06.2]} 31... Kh6
{[%clk 0:00:08.7]} 32. Qd2+ {[%clk 0:00:05.3]} 32... Kh7 {[%clk 0:00:08]} 33.
Rf4 {[%clk 0:00:05.4]} 33... Qg6 {[%clk 0:00:04.4]} 34. R4f3 {[%clk 0:00:05.2]}
34... Qe4 {[%clk 0:00:03.5]} 35. Qd3 {[%clk 0:00:04.9]} 35... Qxd3 {[%clk
0:00:01.1]} 36. Rxd3 {[%clk 0:00:05.8]} 36... Rb1 {[%clk 0:00:01.2]} 37. b3
{[%clk 0:00:05.7]} 37... Rb2 {[%clk 0:00:01.7]} 38. a4 {[%clk 0:00:05.8]} 38...
Ra2 {[%clk 0:00:01.8]} 39. Rc3 {[%clk 0:00:06.2]} 39... Re6 {[%clk 0:00:01.5]}
40. Kf3 {[%clk 0:00:07]} 40... Rd6 {[%clk 0:00:01.4]} 41. Rd2 {[%clk 0:00:07.5]}
41... Ra1 {[%clk 0:00:01.8]} 42. Ke4 {[%clk 0:00:07.5]} 42... Re1+ {[%clk
0:00:01.8]} 43. Kd3 {[%clk 0:00:08.1]} 43... Rg1 {[%clk 0:00:01.8]} 44. Kc4
{[%clk 0:00:08.7]} 44... Rf1 {[%clk 0:00:01.5]} 45. Kc5 {[%clk 0:00:09.2]} 45...
Re6 {[%clk 0:00:01.6]} 46. a5 {[%clk 0:00:09.5]} 46... Ra1 {[%clk 0:00:01.8]}
47. b4 {[%clk 0:00:10.2]} 47... Kg6 {[%clk 0:00:01.1]} 48. Rcd3 {[%clk
0:00:08.9]} 48... Kf5 {[%clk 0:00:01.1]} 49. c4 {[%clk 0:00:09.5]} 49... Kg4
{[%clk 0:00:01.3]} 50. d5 {[%clk 0:00:08.9]} 50... cxd5 {[%clk 0:00:02.2]} 51.
cxd5 {[%clk 0:00:09.8]} 51... Rc1+ {[%clk 0:00:02.7]} 52. Kb5 {[%clk 0:00:09.7]}
52... Re8 {[%clk 0:00:03.1]} 53. d6 {[%clk 0:00:09.7]} 53... Rb8+ {[%clk
0:00:03.2]} 54. Ka4 {[%clk 0:00:10.5]} 54... Rb1 {[%clk 0:00:02.9]} 55. Rd4+
{[%clk 0:00:09.7]} 55... Kxg3 {[%clk 0:00:02.7]} 56. R2d3+ {[%clk 0:00:09.7]}
56... Kf2 {[%clk 0:00:03]} 57. d7 {[%clk 0:00:10.6]} 57... Rd8 {[%clk
0:00:01.6]} 58. a6 {[%clk 0:00:09.9]} 58... f5 {[%clk 0:00:02]} 59. a7 {[%clk
0:00:09.1]} 59... Ra1+ {[%clk 0:00:02.2]} 60. Ra3 {[%clk 0:00:09.8]} 60... Rxa3+
{[%clk 0:00:02.1]} 61. Kxa3 {[%clk 0:00:10.7]} 61... Ke3 {[%clk 0:00:02.4]} 62.
Rd1 {[%clk 0:00:06.5]} 62... Ke2 {[%clk 0:00:02.3]} 63. Rd6 {[%clk 0:00:06.3]}
63... f4 {[%clk 0:00:02.7]} 64. b5 {[%clk 0:00:06.1]} 64... f3 {[%clk
0:00:03.1]} 65. Re6+ {[%clk 0:00:06]} 65... Kd2 {[%clk 0:00:03]} 66. Rd6+ {[%clk
0:00:04.3]} 66... Ke2 {[%clk 0:00:03.1]} 67. Re6+ {[%clk 0:00:04.1]} 67... Kd2
{[%clk 0:00:03.1]} 68. Re8 {[%clk 0:00:04.8]} 68... Rxd7 {[%clk 0:00:03.1]} 69.
a8=Q {[%clk 0:00:05.1]} 69... f2 {[%clk 0:00:03.4]} 70. Rf8 {[%clk 0:00:05.4]}
70... Rd3+ {[%clk 0:00:02.7]} 71. Kb4 {[%clk 0:00:05.4]} 71... Ke2 {[%clk
0:00:02.7]} 72. Qe4+ {[%clk 0:00:05]} 72... Re3 {[%clk 0:00:03.3]} 73. Qc2+
{[%clk 0:00:05.5]} 73... Ke1 {[%clk 0:00:02]} 74. Qxf2+ {[%clk 0:00:06.4]} 74...
Kd1 {[%clk 0:00:02.7]} 75. Qxe3 {[%clk 0:00:06.6]} 75... g5 {[%clk 0:00:03.6]}
76. Rf2 {[%clk 0:00:06.8]} 76... gxh4 {[%clk 0:00:04.5]} 77. Qd2# {[%clk
0:00:07.7]} 1-0

[Event "Early-Titled-Tuesday-Blitz-May-14-2024"]
[Site "Chess.com"]
[Date "2024.05.14"]
[Round "10"]
[White "TigrVShlyape"]
[Black "Zhigalko_Sergei"]
[Result "1-0"]
[WhiteElo "2953"]
[BlackElo "2847"]
[TimeControl "180+1"]
[EndTime "9:59:12 PDT"]
[Termination "TigrVShlyape won on time"]

1. d4 {[%clk 0:03:00.9]} 1... Nf6 {[%clk 0:03:00.2]} 2. Nf3 {[%clk 0:02:58.5]}
2... e6 {[%clk 0:03:00.5]} 3. Bf4 {[%clk 0:02:58.3]} 3... b6 {[%clk 0:02:54.4]}
4. e3 {[%clk 0:02:57.9]} 4... Bb7 {[%clk 0:02:51.1]} 5. h3 {[%clk 0:02:57]} 5...
Bd6 {[%clk 0:02:47.3]} 6. Nbd2 {[%clk 0:02:24.7]} 6... Bxf4 {[%clk 0:02:44.1]}
7. exf4 {[%clk 0:02:24.4]} 7... O-O {[%clk 0:02:43.4]} 8. c3 {[%clk 0:02:18.8]}
8... c5 {[%clk 0:02:41.4]} 9. dxc5 {[%clk 0:02:04.3]} 9... bxc5 {[%clk
0:02:40.5]} 10. Bd3 {[%clk 0:02:04.1]} 10... Qc7 {[%clk 0:02:18]} 11. g3 {[%clk
0:02:03.4]} 11... d6 {[%clk 0:01:57.7]} 12. O-O {[%clk 0:02:00.8]} 12... Nbd7
{[%clk 0:01:57.8]} 13. Re1 {[%clk 0:01:58.7]} 13... a5 {[%clk 0:01:53.9]} 14.
Qe2 {[%clk 0:01:49.8]} 14... a4 {[%clk 0:01:52]} 15. Rad1 {[%clk 0:01:48]} 15...
Rfd8 {[%clk 0:01:36.9]} 16. Kh2 {[%clk 0:01:45.9]} 16... Qc6 {[%clk 0:01:28.6]}
17. Ne4 {[%clk 0:01:08.9]} 17... Nxe4 {[%clk 0:01:20.7]} 18. Bxe4 {[%clk
0:01:08.7]} 18... Qxe4 {[%clk 0:01:21.6]} 19. Qxe4 {[%clk 0:01:09.1]} 19... Bxe4
{[%clk 0:01:22.5]} 20. Rxe4 {[%clk 0:01:09.2]} 20... Nf6 {[%clk 0:01:23.3]} 21.
Re2 {[%clk 0:01:08.9]} 21... Kf8 {[%clk 0:01:15.6]} 22. g4 {[%clk 0:01:06.2]}
22... a3 {[%clk 0:01:14.4]} 23. f5 {[%clk 0:00:50.4]} 23... exf5 {[%clk
0:00:56.4]} 24. gxf5 {[%clk 0:00:49.4]} 24... axb2 {[%clk 0:00:56.9]} 25. Rxb2
{[%clk 0:00:49.3]} 25... Ra3 {[%clk 0:00:42.8]} 26. Rb7 {[%clk 0:00:40.9]} 26...
Rxa2 {[%clk 0:00:29.8]} 27. Ne5 {[%clk 0:00:19.6]} 27... Rxf2+ {[%clk
0:00:28.6]} 28. Kg1 {[%clk 0:00:19.8]} 28... Rxf5 {[%clk 0:00:26.6]} 29. Nxf7
{[%clk 0:00:19.9]} 29... Rd7 {[%clk 0:00:11]} 30. Rxd7 {[%clk 0:00:19.2]} 30...
Nxd7 {[%clk 0:00:11.9]} 31. Nxd6 {[%clk 0:00:19.6]} 31... Rg5+ {[%clk
0:00:08.3]} 32. Kf2 {[%clk 0:00:19.1]} 32... Nf6 {[%clk 0:00:08]} 33. Kf3 {[%clk
0:00:13.6]} 33... Rh5 {[%clk 0:00:06.5]} 34. Kg2 {[%clk 0:00:12.6]} 34... Rg5+
{[%clk 0:00:05.4]} 35. Kf3 {[%clk 0:00:12.7]} 35... Rh5 {[%clk 0:00:05.9]} 36.
Kg2 {[%clk 0:00:12.8]} 36... Ke7 {[%clk 0:00:06.1]} 37. Nc8+ {[%clk 0:00:08.9]}
37... Ke6 {[%clk 0:00:05.8]} 38. c4 {[%clk 0:00:08]} 38... Rg5+ {[%clk
0:00:05.6]} 39. Kf3 {[%clk 0:00:07.9]} 39... Rh5 {[%clk 0:00:04.9]} 40. Kg2
{[%clk 0:00:08.2]} 40... Ne4 {[%clk 0:00:03.5]} 41. Nb6 {[%clk 0:00:03.7]} 41...
Rg5+ {[%clk 0:00:01.6]} 42. Kf3 {[%clk 0:00:03]} 42... Nf6 {[%clk 0:00:02.5]}
43. Re1+ {[%clk 0:00:02]} 43... Kf7 {[%clk 0:00:02.7]} 44. Nc8 {[%clk
0:00:01.5]} 44... Rf5+ {[%clk 0:00:02.4]} 45. Kg2 {[%clk 0:00:01.7]} 45... Rg5+
{[%clk 0:00:02.8]} 46. Kf3 {[%clk 0:00:02.1]} 46... h6 {[%clk 0:00:03.4]} 47.
Nd6+ {[%clk 0:00:01.5]} 47... Kg6 {[%clk 0:00:03.8]} 48. Re6 {[%clk 0:00:00.5]}
48... Rh5 {[%clk 0:00:04.2]} 49. Kg2 {[%clk 0:00:00.5]} 49... Rg5+ {[%clk
0:00:04.4]} 50. Kf3 {[%clk 0:00:01.1]} 50... Kh7 {[%clk 0:00:05.2]} 51. Re7
{[%clk 0:00:01.1]} 51... Rh5 {[%clk 0:00:05.2]} 52. Kg2 {[%clk 0:00:01.6]} 52...
Rg5+ {[%clk 0:00:05.2]} 53. Kf3 {[%clk 0:00:02.2]} 53... Kg8 {[%clk 0:00:05.1]}
54. Rc7 {[%clk 0:00:01.9]} 54... Rh5 {[%clk 0:00:04.9]} 55. Kg2 {[%clk
0:00:02.3]} 55... Re5 {[%clk 0:00:04.1]} 56. Kf3 {[%clk 0:00:02.4]} 56... Kh7
{[%clk 0:00:03.3]} 57. Kf4 {[%clk 0:00:02.5]} 57... Re1 {[%clk 0:00:02.8]} 58.
Nf5 {[%clk 0:00:02.8]} 58... Nh5+ {[%clk 0:00:03.1]} 59. Kg4 {[%clk 0:00:02.9]}
59... Rg1+ {[%clk 0:00:02]} 60. Kf3 {[%clk 0:00:03.3]} 60... Rg5 {[%clk
0:00:02.1]} 61. Ke4 {[%clk 0:00:03.4]} 61... Ng3+ {[%clk 0:00:01.4]} 62. Nxg3
{[%clk 0:00:03.1]} 62... Rxg3 {[%clk 0:00:02.3]} 63. Rxc5 {[%clk 0:00:03.3]}
63... Rxh3 {[%clk 0:00:03]} 64. Rd5 {[%clk 0:00:03.6]} 64... Rc3 {[%clk
0:00:03.1]} 65. c5 {[%clk 0:00:04]} 65... Rc1 {[%clk 0:00:03]} 66. Re5 {[%clk
0:00:02.8]} 66... Kg6 {[%clk 0:00:03.2]} 67. Kd5 {[%clk 0:00:03.6]} 67... h5
{[%clk 0:00:03.1]} 68. c6 {[%clk 0:00:02.7]} 68... h4 {[%clk 0:00:03.2]} 69. Re4
{[%clk 0:00:03.3]} 69... Kg5 {[%clk 0:00:02.3]} 70. Rc4 {[%clk 0:00:03.3]} 70...
Rxc4 {[%clk 0:00:01.6]} 71. Kxc4 {[%clk 0:00:03.4]} 71... h3 {[%clk 0:00:02.5]}
72. c7 {[%clk 0:00:03.9]} 72... h2 {[%clk 0:00:03.2]} 73. c8=Q {[%clk
0:00:04.3]} 73... h1=Q {[%clk 0:00:03.7]} 74. Qd8+ {[%clk 0:00:04.9]} 74... Kh6
{[%clk 0:00:03.1]} 75. Qh8+ {[%clk 0:00:05]} 75... Kg6 {[%clk 0:00:03.4]} 76.
Qxh1 {[%clk 0:00:05.8]} 1-0

[Event "Early-Titled-Tuesday-Blitz-May-14-2024"]
[Site "Chess.com"]
[Date "2024.05.14"]
[Round "10"]
[White "MdChess1734"]
[Black "gau248"]
[Result "0-1"]
[WhiteElo "2416"]
[BlackElo "2612"]
[TimeControl "180+1"]
[EndTime "9:59:22 PDT"]
[Termination "gau248 won by resignation"]

1. e4 {[%clk 0:02:59.6]} 1... e5 {[%clk 0:02:59]} 2. Nf3 {[%clk 0:02:59.6]} 2...
Nc6 {[%clk 0:02:59.2]} 3. Bb5 {[%clk 0:02:59.4]} 3... a6 {[%clk 0:02:59.4]} 4.
Ba4 {[%clk 0:02:58.5]} 4... d6 {[%clk 0:03:00]} 5. c3 {[%clk 0:02:56.5]} 5... f5
{[%clk 0:02:59.9]} 6. d4 {[%clk 0:02:49.6]} 6... fxe4 {[%clk 0:02:47.4]} 7. Ng5
{[%clk 0:02:49.3]} 7... Nf6 {[%clk 0:02:42.5]} 8. dxe5 {[%clk 0:02:45.8]} 8...
Ng4 {[%clk 0:02:28.2]} 9. Qd5 {[%clk 0:02:40.4]} 9... Nxe5 {[%clk 0:02:21.6]}
10. O-O {[%clk 0:02:33.9]} 10... Be7 {[%clk 0:02:20.3]} 11. Nxe4 {[%clk
0:02:30.7]} 11... Nf7 {[%clk 0:02:00.6]} 12. Bb3 {[%clk 0:02:09]} 12... O-O
{[%clk 0:01:54.1]} 13. Ng5 {[%clk 0:02:07.3]} 13... Ne5 {[%clk 0:01:44.4]} 14.
Ne6 {[%clk 0:01:33.3]} 14... Bxe6 {[%clk 0:01:29.6]} 15. Qxe6 {[%clk 0:01:34.2]}
15... Kh8 {[%clk 0:01:26.7]} 16. f4 {[%clk 0:01:33.3]} 16... Ng6 {[%clk
0:01:19.4]} 17. Nd2 {[%clk 0:01:32.8]} 17... c6 {[%clk 0:01:15.5]} 18. Qh3
{[%clk 0:01:25.6]} 18... Nh6 {[%clk 0:01:10.9]} 19. Ne4 {[%clk 0:01:18]} 19...
d5 {[%clk 0:00:52.9]} 20. Ng3 {[%clk 0:01:17.8]} 20... Bc5+ {[%clk 0:00:50.1]}
21. Kh1 {[%clk 0:01:16.8]} 21... Qf6 {[%clk 0:00:21.2]} 22. f5 {[%clk
0:01:07.3]} 22... Ne5 {[%clk 0:00:20.1]} 23. Nh5 {[%clk 0:01:04.4]} 23... Qd6
{[%clk 0:00:20.1]} 24. f6 {[%clk 0:00:54.7]} 24... Kg8 {[%clk 0:00:10.3]} 25.
Bxh6 {[%clk 0:00:51.7]} 25... gxh6 {[%clk 0:00:11.2]} 26. Rae1 {[%clk 0:00:42]}
26... Ng6 {[%clk 0:00:08.7]} 27. Qe3 {[%clk 0:00:33.4]} 27... Bxe3 {[%clk
0:00:04.5]} 28. Rxe3 {[%clk 0:00:25.6]} 28... Rf7 {[%clk 0:00:05]} 29. c4 {[%clk
0:00:24.2]} 29... d4 {[%clk 0:00:03.6]} 30. c5 {[%clk 0:00:24.2]} 30... Qc7
{[%clk 0:00:02.8]} 31. Re4 {[%clk 0:00:15.7]} 31... Kf8 {[%clk 0:00:03.2]} 32.
Bxf7 {[%clk 0:00:14.4]} 32... Qxf7 {[%clk 0:00:04.1]} 33. Rxd4 {[%clk
0:00:15.1]} 33... Re8 {[%clk 0:00:04.2]} 34. h3 {[%clk 0:00:11.2]} 34... Kg8
{[%clk 0:00:04.2]} 35. Rfd1 {[%clk 0:00:10.1]} 35... Rf8 {[%clk 0:00:04.2]} 36.
Rd7 {[%clk 0:00:09.7]} 36... Qe6 {[%clk 0:00:03.4]} 37. Rg7+ {[%clk 0:00:05.3]}
37... Kh8 {[%clk 0:00:03.6]} 38. Rdd7 {[%clk 0:00:04.2]} 38... Qe1+ {[%clk
0:00:03.5]} 39. Kh2 {[%clk 0:00:03.6]} 39... Qe5+ {[%clk 0:00:03.9]} 40. Kh1
{[%clk 0:00:04.1]} 40... Rxf6 {[%clk 0:00:04]} 41. Rxh7+ {[%clk 0:00:04.1]}
41... Kg8 {[%clk 0:00:04.5]} 42. Rhg7+ {[%clk 0:00:04.5]} 42... Kh8 {[%clk
0:00:02.8]} 43. Rh7+ {[%clk 0:00:04.6]} 43... Kg8 {[%clk 0:00:03.4]} 44. Rhg7+
{[%clk 0:00:05.1]} 44... Kf8 {[%clk 0:00:03.9]} 45. Nxf6 {[%clk 0:00:05.4]}
45... Qxf6 {[%clk 0:00:03.7]} 46. Rxb7 {[%clk 0:00:05.9]} 46... Qxg7 {[%clk
0:00:03.6]} 47. Rxg7 {[%clk 0:00:05.4]} 47... Kxg7 {[%clk 0:00:04.5]} 48. Kh2
{[%clk 0:00:05.2]} 48... Ne5 {[%clk 0:00:05]} 49. Kg3 {[%clk 0:00:05.4]} 49...
Nd3 {[%clk 0:00:05.4]} 50. b3 {[%clk 0:00:05.6]} 50... Nxc5 {[%clk 0:00:05.7]}
51. Kf4 {[%clk 0:00:06.5]} 51... Kf6 {[%clk 0:00:06.4]} 52. g4 {[%clk
0:00:07.2]} 52... Ne6+ {[%clk 0:00:07]} 53. Ke4 {[%clk 0:00:07.4]} 53... Ng5+
{[%clk 0:00:07.5]} 54. Kd4 {[%clk 0:00:08.2]} 54... Nxh3 {[%clk 0:00:08]} 55.
Kc5 {[%clk 0:00:09.1]} 55... Nf2 {[%clk 0:00:08.6]} 56. Kxc6 {[%clk 0:00:10]}
56... Nxg4 {[%clk 0:00:09.2]} 57. b4 {[%clk 0:00:09.8]} 57... h5 {[%clk
0:00:09.6]} 58. a4 {[%clk 0:00:10.7]} 58... h4 {[%clk 0:00:10]} 59. b5 {[%clk
0:00:11.6]} 59... h3 {[%clk 0:00:10.3]} 60. b6 {[%clk 0:00:11.3]} 60... h2
{[%clk 0:00:10.6]} 61. b7 {[%clk 0:00:11.7]} 61... h1=Q+ {[%clk 0:00:11.3]} 62.
Kc7 {[%clk 0:00:11.9]} 62... Qh2+ {[%clk 0:00:11.6]} 63. Kc8 {[%clk 0:00:11.9]}
63... Qc2+ {[%clk 0:00:11.8]} 64. Kd8 {[%clk 0:00:12]} 64... Qd3+ {[%clk
0:00:12.1]} 65. Kc7 {[%clk 0:00:12.3]} 65... Qc4+ {[%clk 0:00:12.4]} 66. Kd8
{[%clk 0:00:12.6]} 66... Qd5+ {[%clk 0:00:11.6]} 67. Kc7 {[%clk 0:00:12.7]}
67... Qc5+ {[%clk 0:00:12]} 68. Kd8 {[%clk 0:00:12.5]} 68... Qb6+ {[%clk
0:00:12.3]} 69. Kc8 {[%clk 0:00:12.4]} 69... Qc6+ {[%clk 0:00:13]} 70. Kb8
{[%clk 0:00:11.7]} 70... Qxa4 {[%clk 0:00:13.2]} 71. Ka7 {[%clk 0:00:10.7]}
71... Qb5 {[%clk 0:00:13.7]} 0-1

[Event "Early-Titled-Tuesday-Blitz-May-14-2024"]
[Site "Chess.com"]
[Date "2024.05.14"]
[Round "10"]
[White "savitha1030"]
[Black "BardArtem"]
[Result "1-0"]
[WhiteElo "2570"]
[BlackElo "2760"]
[TimeControl "180+1"]
[EndTime "9:59:24 PDT"]
[Termination "savitha1030 won by checkmate"]

1. e4 {[%clk 0:02:54]} 1... e5 {[%clk 0:02:57.9]} 2. Nf3 {[%clk 0:02:53.6]} 2...
Nc6 {[%clk 0:02:56]} 3. Bb5 {[%clk 0:02:53.9]} 3... Nge7 {[%clk 0:02:53.1]} 4.
c3 {[%clk 0:02:44.5]} 4... d5 {[%clk 0:02:49.2]} 5. exd5 {[%clk 0:02:35.4]} 5...
Qxd5 {[%clk 0:02:50.1]} 6. Qe2 {[%clk 0:02:23.8]} 6... e4 {[%clk 0:02:41.2]} 7.
Nd4 {[%clk 0:02:21.9]} 7... a6 {[%clk 0:02:41]} 8. Bxc6+ {[%clk 0:02:21.9]} 8...
Nxc6 {[%clk 0:02:41.9]} 9. Nxc6 {[%clk 0:02:22]} 9... Qxc6 {[%clk 0:02:42.3]}
10. d3 {[%clk 0:02:22.4]} 10... Bf5 {[%clk 0:02:36.4]} 11. Nd2 {[%clk 0:02:19]}
11... O-O-O {[%clk 0:02:35.3]} 12. dxe4 {[%clk 0:02:18.1]} 12... Re8 {[%clk
0:02:16.7]} 13. O-O {[%clk 0:01:57.1]} 13... Bc5 {[%clk 0:02:11.7]} 14. Re1
{[%clk 0:01:51]} 14... Kb8 {[%clk 0:02:10.3]} 15. Qf3 {[%clk 0:01:49.5]} 15...
Bg6 {[%clk 0:02:08.4]} 16. e5 {[%clk 0:01:47.2]} 16... Qxf3 {[%clk 0:01:37.7]}
17. Nxf3 {[%clk 0:01:48.1]} 17... Bh5 {[%clk 0:01:34.9]} 18. Nd4 {[%clk
0:01:31.7]} 18... f6 {[%clk 0:01:20.2]} 19. Bf4 {[%clk 0:01:24.2]} 19... Kc8
{[%clk 0:01:08.6]} 20. exf6 {[%clk 0:01:19.8]} 20... gxf6 {[%clk 0:01:09.5]} 21.
Ne6 {[%clk 0:01:17.3]} 21... Bb6 {[%clk 0:01:03.5]} 22. h3 {[%clk 0:01:08.8]}
22... Rhg8 {[%clk 0:01:01.1]} 23. g4 {[%clk 0:00:56]} 23... Bf7 {[%clk
0:00:55.1]} 24. Nd4 {[%clk 0:00:53.4]} 24... h5 {[%clk 0:00:52.1]} 25. f3 {[%clk
0:00:49.7]} 25... Bd5 {[%clk 0:00:47]} 26. Kf2 {[%clk 0:00:48]} 26... Rxe1
{[%clk 0:00:33.1]} 27. Rxe1 {[%clk 0:00:47.5]} 27... hxg4 {[%clk 0:00:31.2]} 28.
hxg4 {[%clk 0:00:48.4]} 28... Bxa2 {[%clk 0:00:30.4]} 29. Re7 {[%clk 0:00:49]}
29... Rd8 {[%clk 0:00:13.4]} 30. Be3 {[%clk 0:00:38.5]} 30... Rd7 {[%clk
0:00:06.7]} 31. Re8+ {[%clk 0:00:32]} 31... Rd8 {[%clk 0:00:06.9]} 32. Re7
{[%clk 0:00:30.6]} 32... Bc5 {[%clk 0:00:07]} 33. Re4 {[%clk 0:00:31.5]} 33...
Bd5 {[%clk 0:00:03.6]} 34. Rf4 {[%clk 0:00:31.2]} 34... Rf8 {[%clk 0:00:02.9]}
35. Rf5 {[%clk 0:00:30.8]} 35... c6 {[%clk 0:00:02]} 36. Rh5 {[%clk 0:00:26.5]}
36... Bd6 {[%clk 0:00:02.1]} 37. b3 {[%clk 0:00:24.1]} 37... Be5 {[%clk
0:00:02.2]} 38. c4 {[%clk 0:00:24.7]} 38... Bf7 {[%clk 0:00:02.2]} 39. Rh7
{[%clk 0:00:22.4]} 39... Bg6 {[%clk 0:00:02.6]} 40. Rg7 {[%clk 0:00:22]} 40...
Bxd4 {[%clk 0:00:01.9]} 41. Bxd4 {[%clk 0:00:20.6]} 41... Bc2 {[%clk 0:00:02.8]}
42. b4 {[%clk 0:00:20.8]} 42... Rd8 {[%clk 0:00:01.8]} 43. Bxf6 {[%clk
0:00:20.5]} 43... Rd2+ {[%clk 0:00:01.9]} 44. Kg3 {[%clk 0:00:21.1]} 44... b5
{[%clk 0:00:02.2]} 45. c5 {[%clk 0:00:21.5]} 45... Bb3 {[%clk 0:00:01.6]} 46.
Be5 {[%clk 0:00:20.8]} 46... Rd7 {[%clk 0:00:02]} 47. Rg8+ {[%clk 0:00:19.9]}
47... Kb7 {[%clk 0:00:01.6]} 48. Rb8+ {[%clk 0:00:19.9]} 48... Ka7 {[%clk
0:00:02.1]} 49. Rc8 {[%clk 0:00:20.6]} 49... Kb7 {[%clk 0:00:02.8]} 50. Re8
{[%clk 0:00:21.3]} 50... a5 {[%clk 0:00:03]} 51. bxa5 {[%clk 0:00:21.1]} 51...
Rd3 {[%clk 0:00:03.4]} 52. Rb8+ {[%clk 0:00:21.3]} 52... Ka6 {[%clk 0:00:02.8]}
53. Rb6+ {[%clk 0:00:21.4]} 53... Kxa5 {[%clk 0:00:03.2]} 54. Rxc6 {[%clk
0:00:21.8]} 54... Bd5 {[%clk 0:00:01.7]} 55. Rf6 {[%clk 0:00:21.1]} 55... b4
{[%clk 0:00:02.3]} 56. g5 {[%clk 0:00:21.4]} 56... b3 {[%clk 0:00:02.3]} 57. g6
{[%clk 0:00:21.3]} 57... Re3 {[%clk 0:00:01.8]} 58. Bd4 {[%clk 0:00:20.5]} 58...
Rd3 {[%clk 0:00:02]} 59. Ba1 {[%clk 0:00:20]} 59... Rd1 {[%clk 0:00:02.4]} 60.
Bc3+ {[%clk 0:00:20.6]} 60... Ka4 {[%clk 0:00:02]} 61. Kf2 {[%clk 0:00:18.4]}
61... Rc1 {[%clk 0:00:02.4]} 62. Be5 {[%clk 0:00:17.8]} 62... Rxc5 {[%clk
0:00:01.8]} 63. g7 {[%clk 0:00:15.3]} 63... Rc8 {[%clk 0:00:02.3]} 64. Rf8
{[%clk 0:00:14.4]} 64... Rc2+ {[%clk 0:00:02.3]} 65. Kg3 {[%clk 0:00:14.2]}
65... b2 {[%clk 0:00:02.9]} 66. Rb8 {[%clk 0:00:11.4]} 66... Bb3 {[%clk
0:00:02]} 67. Bxb2 {[%clk 0:00:10.1]} 67... Rxb2 {[%clk 0:00:01.9]} 68. g8=Q
{[%clk 0:00:10.7]} 68... Bxg8 {[%clk 0:00:01.2]} 69. Rxb2 {[%clk 0:00:10.7]}
69... Ka3 {[%clk 0:00:01.9]} 70. Rb1 {[%clk 0:00:11.3]} 70... Bh7 {[%clk
0:00:01.7]} 71. Rb8 {[%clk 0:00:12.2]} 71... Bf5 {[%clk 0:00:01.8]} 72. f4
{[%clk 0:00:12.8]} 72... Ka4 {[%clk 0:00:01.5]} 73. Kh4 {[%clk 0:00:13.5]} 73...
Ka5 {[%clk 0:00:01.9]} 74. Kg5 {[%clk 0:00:14.4]} 74... Be4 {[%clk 0:00:02.2]}
75. f5 {[%clk 0:00:15]} 75... Ka6 {[%clk 0:00:01.6]} 76. f6 {[%clk 0:00:15.7]}
76... Ka7 {[%clk 0:00:02.5]} 77. Rb2 {[%clk 0:00:14.6]} 77... Bd5 {[%clk
0:00:02.1]} 78. Kg6 {[%clk 0:00:15.5]} 78... Ka6 {[%clk 0:00:02.4]} 79. f7
{[%clk 0:00:16.4]} 79... Be6 {[%clk 0:00:02.3]} 80. f8=Q {[%clk 0:00:16.8]}
80... Bc4 {[%clk 0:00:03.2]} 81. Qa3# {[%clk 0:00:16.9]} 1-0